[Event "Live Chess"]
[Site "Chess.com"]
[Date "2023.05.21"]
[Round "-"]
[White "chessleanstrategist"]
[Black "NatashaRegan"]
[Result "0-1"]
[WhiteElo "430"]
[BlackElo "1714"]
[TimeControl "300"]
[EndTime "3:17:48 PDT"]
[Termination "NatashaRegan won by resignation"]

1. c4 {[%clk 0:04:54.9]} 1... e5 {[%clk 0:04:57.8]} 2. Nc3 {[%clk 0:04:47.8]}
2... Nc6 {[%clk 0:04:56.2]} 3. Nf3 {[%clk 0:04:45.7]} 3... f5 {[%clk 0:04:49.4]}
4. g3 {[%clk 0:04:43.4]} 4... Nf6 {[%clk 0:04:47.4]} 5. Bg2 {[%clk 0:04:41.5]}
5... Bc5 {[%clk 0:04:44.2]} 6. e3 {[%clk 0:04:39.7]} 6... d6 {[%clk 0:04:39.8]}
7. O-O {[%clk 0:04:37.1]} 7... O-O {[%clk 0:04:37.5]} 8. b3 {[%clk 0:04:35.7]}
8... a5 {[%clk 0:04:34]} 9. a4 {[%clk 0:04:33.4]} 9... e4 {[%clk 0:04:28.2]} 10.
Nh4 {[%clk 0:04:22.5]} 10... Ne5 {[%clk 0:04:24]} 11. Nd5 {[%clk 0:03:06.8]}
11... Nxd5 {[%clk 0:04:13.1]} 12. cxd5 {[%clk 0:03:05.3]} 12... g5 {[%clk
0:04:09.5]} 13. f4 {[%clk 0:02:55.1]} 13... gxh4 {[%clk 0:03:47.6]} 14. fxe5
{[%clk 0:02:51.1]} 14... hxg3 {[%clk 0:03:45.8]} 15. hxg3 {[%clk 0:02:50.8]}
15... dxe5 {[%clk 0:03:44.4]} 16. d4 {[%clk 0:02:40.3]} 16... exd3 {[%clk
0:03:38.5]} 17. Qxd3 {[%clk 0:02:40]} 17... e4 {[%clk 0:03:37.2]} 18. Qc3 {[%clk
0:02:19.1]} 18... Bb4 {[%clk 0:03:23.6]} 19. Qc4 {[%clk 0:02:08]} 19... Qf6
{[%clk 0:03:14.5]} 20. Ba3 {[%clk 0:01:44.5]} 20... Bxa3 {[%clk 0:02:50]} 21.
Rxa3 {[%clk 0:01:42.8]} 21... Qd6 {[%clk 0:02:48.5]} 22. Bxe4 {[%clk 0:01:32.6]}
22... fxe4 {[%clk 0:02:38.6]} 23. Rxf8+ {[%clk 0:01:31.3]} 23... Kxf8 {[%clk
0:02:35.8]} 24. Qxe4 {[%clk 0:01:30.9]} 24... Qxa3 {[%clk 0:02:29.7]} 25. Qf4+
{[%clk 0:01:22.2]} 25... Ke8 {[%clk 0:02:25.6]} 26. Qxc7 {[%clk 0:01:11]} 26...
Qe7 {[%clk 0:02:22.3]} 27. Qc4 {[%clk 0:00:57.6]} 27... Bf5 {[%clk 0:02:16.1]}
28. Qf4 {[%clk 0:00:47]} 28... Qe4 {[%clk 0:02:10.1]} 29. Qxe4+ {[%clk
0:00:21.1]} 29... Bxe4 {[%clk 0:02:07.7]} 30. Kf2 {[%clk 0:00:20.1]} 30... Bxd5
{[%clk 0:02:05.1]} 31. Ke2 {[%clk 0:00:17.1]} 31... Bxb3 {[%clk 0:02:02.5]} 32.
g4 {[%clk 0:00:14.3]} 32... Bxa4 {[%clk 0:02:01]} 33. Kf3 {[%clk 0:00:13.1]}
33... Bc6+ {[%clk 0:01:59.2]} 34. e4 {[%clk 0:00:11.3]} 34... a4 {[%clk
0:01:57.5]} 35. Kf4 {[%clk 0:00:10.2]} 35... Ke7 {[%clk 0:01:55.6]} 0-1

[Event "Live Chess"]
[Site "Chess.com"]
[Date "2023.05.21"]
[Round "-"]
[White "Doge_Dandolo"]
[Black "omisoc"]
[Result "1/2-1/2"]
[WhiteElo "1871"]
[BlackElo "2169"]
[TimeControl "300"]
[EndTime "3:18:03 PDT"]
[Termination "Game drawn by agreement"]

1. Nf3 {[%clk 0:04:53.6]} 1... c5 {[%clk 0:04:55.8]} 2. c4 {[%clk 0:04:50.6]}
2... g6 {[%clk 0:04:53.3]} 3. g3 {[%clk 0:04:32.8]} 3... Bg7 {[%clk 0:04:51.6]}
4. Bg2 {[%clk 0:04:31.3]} 4... Nc6 {[%clk 0:04:50.4]} 5. O-O {[%clk 0:04:28]}
5... e6 {[%clk 0:04:49.2]} 6. Nc3 {[%clk 0:04:24.1]} 6... Nge7 {[%clk
0:04:47.8]} 7. d4 {[%clk 0:04:17.8]} 7... cxd4 {[%clk 0:04:44.8]} 8. Nb5 {[%clk
0:04:15.6]} 8... O-O {[%clk 0:04:40.3]} 9. Nbxd4 {[%clk 0:04:13.5]} 9... d5
{[%clk 0:04:35.7]} 10. cxd5 {[%clk 0:04:08.1]} 10... exd5 {[%clk 0:04:34.7]} 11.
Bg5 {[%clk 0:04:00.9]} 11... h6 {[%clk 0:04:30.9]} 12. Nxc6 {[%clk 0:03:54.2]}
12... bxc6 {[%clk 0:04:28.7]} 13. Bxe7 {[%clk 0:03:51.8]} 13... Qxe7 {[%clk
0:04:27.6]} 14. Qc2 {[%clk 0:03:50.5]} 14... c5 {[%clk 0:04:00.1]} 15. Rfd1
{[%clk 0:03:43.3]} 15... Bb7 {[%clk 0:03:56.7]} 16. Rac1 {[%clk 0:03:37.3]}
16... Rac8 {[%clk 0:03:48.3]} 17. b3 {[%clk 0:03:35]} 17... Rfe8 {[%clk
0:03:38.6]} 18. e3 {[%clk 0:03:33.2]} 18... d4 {[%clk 0:03:14.3]} 19. exd4
{[%clk 0:03:24.7]} 19... Bxf3 {[%clk 0:03:04.3]} 20. Bxf3 {[%clk 0:03:21.1]}
20... Bxd4 {[%clk 0:03:00.5]} 21. Re1 {[%clk 0:03:09]} 21... Qxe1+ {[%clk
0:02:58.5]} 22. Rxe1 {[%clk 0:03:04.5]} 22... Rxe1+ {[%clk 0:02:58]} 23. Kg2
{[%clk 0:03:02.8]} 23... Rd8 {[%clk 0:02:46.3]} 24. a3 {[%clk 0:02:51.6]} 24...
Rd6 {[%clk 0:02:39.4]} 25. b4 {[%clk 0:02:45.9]} 25... cxb4 {[%clk 0:02:35.1]}
26. axb4 {[%clk 0:02:44.4]} 26... Ra1 {[%clk 0:02:06.3]} 27. Qb3 {[%clk
0:02:31.2]} 27... Rf6 {[%clk 0:01:52.2]} 28. Qd3 {[%clk 0:02:21.5]} 28... Bb6
{[%clk 0:01:49.3]} 29. Qc3 {[%clk 0:02:13]} 29... Rxf3 {[%clk 0:01:41.8]} 30.
Kxf3 {[%clk 0:02:09.4]} 30... Ra2 {[%clk 0:01:39.8]} 31. Qc8+ {[%clk 0:01:57.2]}
31... Kg7 {[%clk 0:01:34.9]} 32. Qc3+ {[%clk 0:01:54.1]} 32... Kh7 {[%clk
0:01:27.8]} 33. Qb3 {[%clk 0:01:47.5]} 33... Rxf2+ {[%clk 0:01:25.8]} 34. Kg4
{[%clk 0:01:44.7]} 34... h5+ {[%clk 0:01:17.1]} 35. Kh3 {[%clk 0:01:41.8]} 35...
Rf5 {[%clk 0:01:14.5]} 36. Qc4 {[%clk 0:01:26.5]} 36... Rf2 {[%clk 0:01:10.2]}
37. Qd5 {[%clk 0:01:14.5]} 37... Kh6 {[%clk 0:01:04.4]} 38. Qe5 {[%clk
0:01:05.6]} 38... Kh7 {[%clk 0:00:51.3]} 39. Qe7 {[%clk 0:00:57.8]} 39... Rf5
{[%clk 0:00:40.9]} 40. Qd7 {[%clk 0:00:50.6]} 40... Kg7 {[%clk 0:00:37.9]} 41.
Qd2 {[%clk 0:00:39]} 41... g5 {[%clk 0:00:29.6]} 42. Qc3+ {[%clk 0:00:36.1]}
42... Kg6 {[%clk 0:00:24.4]} 43. Qc6+ {[%clk 0:00:33.9]} 43... Rf6 {[%clk
0:00:19.4]} 44. Qc2+ {[%clk 0:00:32.5]} 44... Kg7 {[%clk 0:00:17.6]} 45. Qc3
{[%clk 0:00:29.3]} 45... Kg6 {[%clk 0:00:14.6]} 46. Qd3+ {[%clk 0:00:26.9]}
46... Kh6 {[%clk 0:00:13.3]} 47. Qd2 {[%clk 0:00:13.7]} 47... Kg6 {[%clk
0:00:11.3]} 48. Qd3+ {[%clk 0:00:12.3]} 48... Kg7 {[%clk 0:00:07.3]} 1/2-1/2

[Event "Live Chess"]
[Site "Chess.com"]
[Date "2023.05.21"]
[Round "-"]
[White "Bunny55"]
[Black "JohanKjeldahl"]
[Result "0-1"]
[WhiteElo "945"]
[BlackElo "1894"]
[TimeControl "300"]
[EndTime "3:18:08 PDT"]
[Termination "JohanKjeldahl won by resignation"]

1. e4 {[%clk 0:04:56.8]} 1... c5 {[%clk 0:04:59.1]} 2. Nf3 {[%clk 0:04:55.8]}
2... Nc6 {[%clk 0:04:58.1]} 3. d4 {[%clk 0:04:55.4]} 3... cxd4 {[%clk 0:04:57]}
4. Nxd4 {[%clk 0:04:54.6]} 4... Nf6 {[%clk 0:04:55.5]} 5. Be3 {[%clk 0:04:51.5]}
5... e5 {[%clk 0:04:54.1]} 6. Nxc6 {[%clk 0:04:49.5]} 6... bxc6 {[%clk
0:04:52.2]} 7. Nc3 {[%clk 0:04:48.1]} 7... Bb4 {[%clk 0:04:48.9]} 8. Bd3 {[%clk
0:04:46.7]} 8... O-O {[%clk 0:04:47.3]} 9. O-O {[%clk 0:04:45.5]} 9... d5 {[%clk
0:04:46.2]} 10. a3 {[%clk 0:04:40.4]} 10... Bxc3 {[%clk 0:04:38.4]} 11. bxc3
{[%clk 0:04:39.1]} 11... dxe4 {[%clk 0:04:37.4]} 12. Bc4 {[%clk 0:04:31.9]}
12... Bf5 {[%clk 0:04:33.9]} 13. Bg5 {[%clk 0:04:30.3]} 13... Qe7 {[%clk
0:04:27.8]} 14. Qd2 {[%clk 0:04:24.8]} 14... Rfd8 {[%clk 0:04:24.1]} 15. Qe2
{[%clk 0:04:18]} 15... h6 {[%clk 0:04:20.4]} 16. Bxf6 {[%clk 0:04:15.5]} 16...
Qxf6 {[%clk 0:04:19.3]} 17. Rad1 {[%clk 0:04:14.3]} 17... Qg6 {[%clk 0:04:15.1]}
18. Kh1 {[%clk 0:04:01.6]} 18... Bg4 {[%clk 0:04:08]} 19. f3 {[%clk 0:03:58.3]}
19... exf3 {[%clk 0:04:06.7]} 20. gxf3 {[%clk 0:03:55.6]} 20... Bh3 {[%clk
0:04:00.1]} 21. Rg1 {[%clk 0:03:48]} 21... Rxd1 {[%clk 0:03:55.9]} 22. Qxd1
{[%clk 0:03:43.5]} 22... Qf6 {[%clk 0:03:54.8]} 23. Qe2 {[%clk 0:03:33]} 23...
Rd8 {[%clk 0:03:51.6]} 24. Bd3 {[%clk 0:03:17.1]} 24... Bf5 {[%clk 0:03:44.4]}
25. Bxf5 {[%clk 0:03:03.6]} 25... Qxf5 {[%clk 0:03:42.4]} 26. Qg2 {[%clk
0:03:00.2]} 26... g6 {[%clk 0:03:38.6]} 27. h4 {[%clk 0:02:55.3]} 27... Qf4
{[%clk 0:03:35.6]} 28. Qh3 {[%clk 0:02:44.4]} 28... e4 {[%clk 0:03:25.3]} 29.
fxe4 {[%clk 0:02:36.1]} 29... Qxe4+ {[%clk 0:03:24]} 30. Qg2 {[%clk 0:02:33.9]}
30... Qxh4+ {[%clk 0:03:22.1]} 31. Qh2 {[%clk 0:02:31.5]} 31... Qe4+ {[%clk
0:03:19]} 32. Qg2 {[%clk 0:02:30.3]} 32... Re8 {[%clk 0:03:16.5]} 0-1

[Event "Live Chess"]
[Site "Chess.com"]
[Date "2023.05.21"]
[Round "-"]
[White "RockTroll"]
[Black "toxic_rabbit"]
[Result "1-0"]
[WhiteElo "2226"]
[BlackElo "1984"]
[TimeControl "300"]
[EndTime "3:18:08 PDT"]
[Termination "RockTroll won by resignation"]

1. e4 {[%clk 0:04:57.6]} 1... e6 {[%clk 0:04:59]} 2. Nf3 {[%clk 0:04:55.6]} 2...
d5 {[%clk 0:04:58.4]} 3. e5 {[%clk 0:04:55.3]} 3... c5 {[%clk 0:04:57]} 4. b4
{[%clk 0:04:54.9]} 4... Nc6 {[%clk 0:04:55.4]} 5. bxc5 {[%clk 0:04:53.4]} 5...
Bxc5 {[%clk 0:04:54.8]} 6. d4 {[%clk 0:04:52.9]} 6... Bb6 {[%clk 0:04:54.1]} 7.
c3 {[%clk 0:04:52.1]} 7... Nge7 {[%clk 0:04:53.5]} 8. Bd3 {[%clk 0:04:51.6]}
8... Ba5 {[%clk 0:04:52.7]} 9. h4 {[%clk 0:04:46.7]} 9... O-O {[%clk 0:04:49.4]}
10. Bxh7+ {[%clk 0:04:43.6]} 10... Kxh7 {[%clk 0:04:47.7]} 11. Ng5+ {[%clk
0:04:43.1]} 11... Kg6 {[%clk 0:04:47.2]} 12. h5+ {[%clk 0:04:35.7]} 1-0

[Event "Live Chess"]
[Site "Chess.com"]
[Date "2023.05.21"]
[Round "-"]
[White "YrrriKharkiv"]
[Black "CheckThis4"]
[Result "0-1"]
[WhiteElo "2062"]
[BlackElo "2496"]
[TimeControl "300"]
[EndTime "3:18:23 PDT"]
[Termination "CheckThis4 won by resignation"]

1. d4 {[%clk 0:04:53.2]} 1... Nf6 {[%clk 0:04:58.7]} 2. c4 {[%clk 0:04:51.8]}
2... e5 {[%clk 0:04:57.6]} 3. dxe5 {[%clk 0:04:49.8]} 3... Ng4 {[%clk
0:04:56.6]} 4. Nf3 {[%clk 0:04:49]} 4... Bc5 {[%clk 0:04:55.1]} 5. e3 {[%clk
0:04:47.8]} 5... Nc6 {[%clk 0:04:54.6]} 6. a3 {[%clk 0:04:43.2]} 6... a5 {[%clk
0:04:52.4]} 7. Nbd2 {[%clk 0:04:40.9]} 7... Ngxe5 {[%clk 0:04:43.2]} 8. Be2
{[%clk 0:04:38.6]} 8... O-O {[%clk 0:04:41.2]} 9. Nxe5 {[%clk 0:04:37.3]} 9...
Nxe5 {[%clk 0:04:39.9]} 10. Nf3 {[%clk 0:04:37]} 10... d6 {[%clk 0:04:33.6]} 11.
Bd2 {[%clk 0:04:35.4]} 11... a4 {[%clk 0:04:23.7]} 12. Bc3 {[%clk 0:04:30.8]}
12... Qe7 {[%clk 0:04:19.9]} 13. O-O {[%clk 0:04:14.4]} 13... c6 {[%clk
0:04:10.1]} 14. Nd4 {[%clk 0:03:49.8]} 14... Qh4 {[%clk 0:04:01.1]} 15. Nf3
{[%clk 0:03:41.8]} 15... Nxf3+ {[%clk 0:03:58]} 16. Bxf3 {[%clk 0:03:41]} 16...
Qxc4 {[%clk 0:03:54.9]} 17. Rc1 {[%clk 0:03:35.8]} 17... Qb3 {[%clk 0:03:50.2]}
18. Qxb3 {[%clk 0:03:29.6]} 18... axb3 {[%clk 0:03:50.1]} 19. Bd4 {[%clk
0:03:23.6]} 19... Bxd4 {[%clk 0:03:46.7]} 20. exd4 {[%clk 0:03:22.1]} 20... Bf5
{[%clk 0:03:45]} 21. Bd1 {[%clk 0:03:16.3]} 21... Be6 {[%clk 0:03:30.7]} 22. Rc3
{[%clk 0:03:12.6]} 22... Ra4 {[%clk 0:03:29.1]} 23. Bxb3 {[%clk 0:03:07.1]}
23... Rxd4 {[%clk 0:03:27.9]} 24. Bxe6 {[%clk 0:03:05.4]} 24... fxe6 {[%clk
0:03:27.8]} 25. b3 {[%clk 0:02:49.2]} 25... Rd2 {[%clk 0:03:23]} 26. f3 {[%clk
0:02:48.1]} 26... e5 {[%clk 0:03:21.4]} 27. a4 {[%clk 0:02:44.4]} 27... Kf7
{[%clk 0:03:16.3]} 28. Ra1 {[%clk 0:02:38.1]} 28... Ke6 {[%clk 0:03:13.9]} 29.
a5 {[%clk 0:02:36.5]} 29... e4 {[%clk 0:03:11.4]} 30. fxe4 {[%clk 0:02:28.8]}
30... Rff2 {[%clk 0:03:08.6]} 31. Rg3 {[%clk 0:02:27.1]} 31... g6 {[%clk
0:03:06]} 32. a6 {[%clk 0:02:21.5]} 32... bxa6 {[%clk 0:03:04.6]} 33. Rxa6
{[%clk 0:02:19.5]} 33... Rfe2 {[%clk 0:03:02.1]} 34. h3 {[%clk 0:02:08.8]} 34...
Rc2 {[%clk 0:02:57.6]} 35. Ra4 {[%clk 0:02:01.6]} 35... c5 {[%clk 0:02:51.6]}
36. Kh2 {[%clk 0:01:51.4]} 36... Rb2 {[%clk 0:02:48.6]} 37. Ra7 {[%clk
0:01:37.8]} 37... Rxe4 {[%clk 0:02:27.6]} 38. Rxh7 {[%clk 0:01:35.5]} 38... Kd5
{[%clk 0:02:26.7]} 39. Rxg6 {[%clk 0:01:30.6]} 39... Rxb3 {[%clk 0:02:25.2]} 40.
h4 {[%clk 0:01:11.2]} 40... c4 {[%clk 0:02:24]} 41. g3 {[%clk 0:01:06.5]} 41...
c3 {[%clk 0:02:22]} 42. Rc7 {[%clk 0:01:06.2]} 42... Re2+ {[%clk 0:02:12.3]} 43.
Kh3 {[%clk 0:01:02.2]} 43... c2 {[%clk 0:02:11.7]} 44. Rg5+ {[%clk 0:00:39.5]}
44... Kd4 {[%clk 0:01:58.3]} 45. Rg4+ {[%clk 0:00:35.3]} 45... Kd3 {[%clk
0:01:55.4]} 46. Rgc4 {[%clk 0:00:30.7]} 46... d5 {[%clk 0:01:52.2]} 47. R4c5
{[%clk 0:00:28.6]} 47... d4 {[%clk 0:01:51.5]} 48. h5 {[%clk 0:00:27.8]} 48...
Rb1 {[%clk 0:01:42.4]} 49. Kg4 {[%clk 0:00:19.5]} 49... Rh1 {[%clk 0:01:41.2]}
50. R7c6 {[%clk 0:00:15.6]} 50... Re4+ {[%clk 0:01:32.5]} 51. Kf3 {[%clk
0:00:14.6]} 51... Rh2 {[%clk 0:01:21.1]} 52. Rxc2 {[%clk 0:00:10.5]} 52... Re3+
{[%clk 0:01:19.9]} 53. Kf4 {[%clk 0:00:07.1]} 53... Rxc2 {[%clk 0:01:18.9]} 54.
Rxc2 {[%clk 0:00:06.3]} 54... Kxc2 {[%clk 0:01:18.8]} 55. h6 {[%clk 0:00:05.8]}
55... Re8 {[%clk 0:01:17]} 56. h7 {[%clk 0:00:05.5]} 56... d3 {[%clk 0:01:16.3]}
0-1

[Event "Live Chess"]
[Site "Chess.com"]
[Date "2023.05.21"]
[Round "-"]
[White "bedsdrout"]
[Black "NAZRIZ1977"]
[Result "0-1"]
[WhiteElo "577"]
[BlackElo "1970"]
[TimeControl "300"]
[EndTime "3:18:28 PDT"]
[Termination "NAZRIZ1977 won by checkmate"]

1. b4 {[%clk 0:04:56.4]} 1... d5 {[%clk 0:04:58.3]} 2. Nc3 {[%clk 0:04:50.6]}
2... e6 {[%clk 0:04:57.7]} 3. Nf3 {[%clk 0:04:44.8]} 3... Bxb4 {[%clk
0:04:56.2]} 4. Bb2 {[%clk 0:04:38.7]} 4... Nf6 {[%clk 0:04:53]} 5. e3 {[%clk
0:04:28.4]} 5... O-O {[%clk 0:04:51.4]} 6. Bd3 {[%clk 0:04:25.3]} 6... Nbd7
{[%clk 0:04:47.7]} 7. Nd4 {[%clk 0:04:21.4]} 7... c5 {[%clk 0:04:43.8]} 8. Qf3
{[%clk 0:04:14.5]} 8... cxd4 {[%clk 0:04:40.4]} 9. Nxd5 {[%clk 0:04:07.2]} 9...
exd5 {[%clk 0:04:36.5]} 10. Qh3 {[%clk 0:04:05.4]} 10... Ne5 {[%clk 0:04:33.1]}
11. f4 {[%clk 0:03:59.1]} 11... Nxd3+ {[%clk 0:04:31.1]} 12. cxd3 {[%clk
0:03:52]} 12... Bxh3 {[%clk 0:04:31]} 13. gxh3 {[%clk 0:03:50.3]} 13... dxe3
{[%clk 0:04:29.7]} 14. Rg1 {[%clk 0:03:47]} 14... exd2+ {[%clk 0:04:26.7]} 15.
Ke2 {[%clk 0:03:41.9]} 15... d4 {[%clk 0:04:26.4]} 16. Rg2 {[%clk 0:03:37.6]}
16... Qe7+ {[%clk 0:04:25.3]} 17. Kf3 {[%clk 0:03:32.3]} 17... Qe3# {[%clk
0:04:25.2]} 0-1

[Event "Live Chess"]
[Site "Chess.com"]
[Date "2023.05.21"]
[Round "-"]
[White "PetorPrydatko"]
[Black "Tushinskiy"]
[Result "0-1"]
[WhiteElo "354"]
[BlackElo "2182"]
[TimeControl "300"]
[EndTime "3:18:29 PDT"]
[Termination "Tushinskiy won on time"]

1. e4 {[%clk 0:04:52.3]} 1... e5 {[%clk 0:04:58]} 2. d3 {[%clk 0:04:42]} 2... d6
{[%clk 0:04:57.2]} 3. Nc3 {[%clk 0:04:36.4]} 3... Nf6 {[%clk 0:04:56]} 4. Bg5
{[%clk 0:04:03.2]} 4... Be7 {[%clk 0:04:46.3]} 5. Be2 {[%clk 0:03:56.1]} 5... c6
{[%clk 0:04:44.5]} 6. Nf3 {[%clk 0:03:53.8]} 6... Nbd7 {[%clk 0:04:42.2]} 7. O-O
{[%clk 0:03:51.2]} 7... O-O {[%clk 0:04:14.9]} 8. b4 {[%clk 0:03:36.5]} 8... Re8
{[%clk 0:04:11.9]} 9. d4 {[%clk 0:03:15.7]} 9... Qc7 {[%clk 0:04:10.4]} 10. dxe5
{[%clk 0:03:07]} 10... dxe5 {[%clk 0:04:08.8]} 11. Bc4 {[%clk 0:02:38.9]} 11...
Bxb4 {[%clk 0:04:05.8]} 12. Ne2 {[%clk 0:02:14.8]} 12... Nxe4 {[%clk 0:03:58.7]}
13. Rb1 {[%clk 0:01:49.1]} 13... Bf8 {[%clk 0:03:52.4]} 14. Bxf7+ {[%clk
0:01:30.1]} 14... Kxf7 {[%clk 0:03:49.5]} 15. Rb4 {[%clk 0:01:21]} 15... Bxb4
{[%clk 0:03:44.5]} 16. Qb1 {[%clk 0:01:12.3]} 16... Qd6 {[%clk 0:03:14.8]} 17.
c3 {[%clk 0:00:48.4]} 17... Bc5 {[%clk 0:03:09.6]} 18. Qd1 {[%clk 0:00:27.8]}
18... Qxd1 {[%clk 0:03:07.4]} 19. Rxd1 {[%clk 0:00:25.5]} 19... Ndf6 {[%clk
0:03:05.6]} 20. Nxe5+ {[%clk 0:00:16.5]} 20... Rxe5 {[%clk 0:03:03.5]} 21. Rd7+
{[%clk 0:00:08.1]} 21... Bxd7 {[%clk 0:03:01.7]} 22. Bxf6 {[%clk 0:00:05.9]}
22... Nxf6 {[%clk 0:03:00.1]} 0-1

[Event "Live Chess"]
[Site "Chess.com"]
[Date "2023.05.21"]
[Round "-"]
[White "manthanit"]
[Black "Greenbecker"]
[Result "0-1"]
[WhiteElo "1081"]
[BlackElo "1649"]
[TimeControl "300"]
[EndTime "3:18:31 PDT"]
[Termination "Greenbecker won by checkmate"]

1. e4 {[%clk 0:04:52.2]} 1... e6 {[%clk 0:04:59.2]} 2. Nf3 {[%clk 0:04:51.4]}
2... d5 {[%clk 0:04:58.2]} 3. exd5 {[%clk 0:04:51.1]} 3... exd5 {[%clk
0:04:56.9]} 4. d4 {[%clk 0:04:50.8]} 4... Nf6 {[%clk 0:04:55.9]} 5. Nc3 {[%clk
0:04:50.2]} 5... Bd6 {[%clk 0:04:54.5]} 6. h3 {[%clk 0:04:49.6]} 6... O-O {[%clk
0:04:53.3]} 7. Bg5 {[%clk 0:04:48.6]} 7... Re8+ {[%clk 0:04:52.5]} 8. Be2 {[%clk
0:04:48.2]} 8... c6 {[%clk 0:04:51.7]} 9. O-O {[%clk 0:04:47.2]} 9... h6 {[%clk
0:04:50.6]} 10. Bh4 {[%clk 0:04:46.3]} 10... Be6 {[%clk 0:04:47.7]} 11. Bd3
{[%clk 0:04:37]} 11... Nbd7 {[%clk 0:04:46.4]} 12. Re1 {[%clk 0:04:35.4]} 12...
Qc7 {[%clk 0:04:45.2]} 13. Bg3 {[%clk 0:04:32.5]} 13... Bxg3 {[%clk 0:04:43.6]}
14. fxg3 {[%clk 0:04:31.5]} 14... Qxg3 {[%clk 0:04:42.6]} 15. Ne2 {[%clk
0:04:30.1]} 15... Qc7 {[%clk 0:04:38]} 16. Rc1 {[%clk 0:04:16.4]} 16... Nh5
{[%clk 0:04:31.7]} 17. c4 {[%clk 0:04:12]} 17... Nf4 {[%clk 0:04:28.1]} 18. Nxf4
{[%clk 0:04:10]} 18... Qxf4 {[%clk 0:04:26.2]} 19. cxd5 {[%clk 0:04:08.5]} 19...
Bxd5 {[%clk 0:04:24.6]} 20. Be4 {[%clk 0:04:03]} 20... Rxe4 {[%clk 0:04:14]} 21.
Rxe4 {[%clk 0:03:56.6]} 21... Bxe4 {[%clk 0:04:10.2]} 22. Rc4 {[%clk 0:03:41.4]}
22... Bxf3 {[%clk 0:04:04.2]} 23. Qxf3 {[%clk 0:03:39.5]} 23... Qxf3 {[%clk
0:04:03.3]} 24. gxf3 {[%clk 0:03:39.1]} 24... Nb6 {[%clk 0:04:00.7]} 25. Rc2
{[%clk 0:03:38]} 25... Rd8 {[%clk 0:03:59.5]} 26. Rd2 {[%clk 0:03:36.1]} 26...
Rd5 {[%clk 0:03:57.2]} 27. b3 {[%clk 0:03:35.2]} 27... Kf8 {[%clk 0:03:53]} 28.
Kf2 {[%clk 0:03:34.4]} 28... Ke7 {[%clk 0:03:52.1]} 29. Ke3 {[%clk 0:03:33.8]}
29... Nd7 {[%clk 0:03:47.1]} 30. Kd3 {[%clk 0:03:26.3]} 30... Ne5+ {[%clk
0:03:41]} 31. Ke3 {[%clk 0:03:24.1]} 31... Ng6 {[%clk 0:03:38.2]} 32. Kf2 {[%clk
0:03:18.6]} 32... c5 {[%clk 0:03:34.3]} 33. Re2+ {[%clk 0:03:16.2]} 33... Kd7
{[%clk 0:03:29.5]} 34. dxc5 {[%clk 0:03:15.5]} 34... Rxc5 {[%clk 0:03:28.7]} 35.
Rd2+ {[%clk 0:03:11.3]} 35... Kc6 {[%clk 0:03:27.5]} 36. Ke1 {[%clk 0:03:03.8]}
36... Ne5 {[%clk 0:03:23.6]} 37. Ke2 {[%clk 0:02:56]} 37... Rd5 {[%clk
0:03:21.3]} 38. Rc2+ {[%clk 0:02:50.1]} 38... Kd6 {[%clk 0:03:20.1]} 39. a4
{[%clk 0:02:38.6]} 39... g5 {[%clk 0:03:09.8]} 40. Rc8 {[%clk 0:02:29.8]} 40...
Kd7 {[%clk 0:03:02.1]} 41. Rh8 {[%clk 0:02:28.2]} 41... Rd3 {[%clk 0:02:55.1]}
42. Rxh6 {[%clk 0:02:22.8]} 42... Rxf3 {[%clk 0:02:45.7]} 43. Rh5 {[%clk
0:02:21]} 43... Rxb3 {[%clk 0:02:43.6]} 44. Rxg5 {[%clk 0:02:19.6]} 44... f6
{[%clk 0:02:40]} 45. Rg7+ {[%clk 0:02:10]} 45... Kc6 {[%clk 0:02:39]} 46. Rg6
{[%clk 0:02:05.2]} 46... Rxh3 {[%clk 0:02:28.5]} 47. Rxf6+ {[%clk 0:02:04.1]}
47... Kd5 {[%clk 0:02:27.7]} 48. Rf8 {[%clk 0:01:57.9]} 48... Ra3 {[%clk
0:02:18.1]} 49. Rd8+ {[%clk 0:01:55.5]} 49... Kc6 {[%clk 0:02:15.9]} 50. Rd4
{[%clk 0:01:54]} 50... Nd7 {[%clk 0:02:11.8]} 51. Kd2 {[%clk 0:01:47.2]} 51...
Nc5 {[%clk 0:02:07.9]} 52. Rc4 {[%clk 0:01:42.7]} 52... Rxa4 {[%clk 0:02:06.5]}
53. Kc3 {[%clk 0:01:39.3]} 53... Rxc4+ {[%clk 0:02:05.2]} 54. Kxc4 {[%clk
0:01:39]} 54... b5+ {[%clk 0:02:04.2]} 55. Kb4 {[%clk 0:01:37.9]} 55... Kb6
{[%clk 0:02:02.4]} 56. Kc3 {[%clk 0:01:32.3]} 56... a5 {[%clk 0:02:00.8]} 57.
Kb2 {[%clk 0:01:30.9]} 57... b4 {[%clk 0:01:59.7]} 58. Ka2 {[%clk 0:01:29.3]}
58... Kb5 {[%clk 0:01:58.8]} 59. Kb2 {[%clk 0:01:28.3]} 59... Kc4 {[%clk
0:01:57.5]} 60. Ka2 {[%clk 0:01:27.2]} 60... Kc3 {[%clk 0:01:56.3]} 61. Ka1
{[%clk 0:01:25.7]} 61... a4 {[%clk 0:01:53.7]} 62. Ka2 {[%clk 0:01:25]} 62... a3
{[%clk 0:01:44.9]} 63. Ka1 {[%clk 0:01:20.8]} 63... b3 {[%clk 0:01:43.3]} 64.
Kb1 {[%clk 0:01:18.4]} 64... Nd3 {[%clk 0:01:33.7]} 65. Ka1 {[%clk 0:01:16.9]}
65... b2+ {[%clk 0:01:32.2]} 66. Ka2 {[%clk 0:01:16]} 66... Kc2 {[%clk
0:01:29.9]} 67. Kxa3 {[%clk 0:01:14.9]} 67... b1=Q {[%clk 0:01:26.5]} 68. Ka4
{[%clk 0:01:14.5]} 68... Qb4# {[%clk 0:01:25.5]} 0-1